bitfinex-derivatives/quotes_BNBF0:USTF0_20250511
["timestamp","ask_amount","ask_price","bid_price","bid_amount"]
[1746944060512,0.3021924,661.83,661.07,1.21895452]
[1746944061213,0.3021924,661.83,661.01,1.21895452]
[1746944061713,0.3021924,661.83,661.02,1.21895452]
[1746944062012,0.3021924,661.83,661.03,1.21895452]
[1746944062413,0.3021924,661.83,661.04,1.21895452]
[1746944063114,0.3021924,661.83,661.05,1.21895452]
[1746944063615,0.3021924,661.83,661.06,1.21895452]
[1746944063916,0.3021924,661.83,661.07,1.21895452]
[1746944064516,0.3021924,661.83,661.08,1.21895452]
[1746944065217,0.3021924,661.83,661.09,1.21895452]
[1746944065817,0.3021924,661.83,661.1,1.21895452]
[1746944066613,0.3021924,661.83,661.11,1.21895452]
[1746944067017,0.3021924,661.83,661.12,1.21895452]
[1746944067813,0.3021924,661.83,661.13,1.21895452]
[1746944068117,0.3021924,661.83,661.14,1.21895452]
[1746944068317,0.3021924,661.83,661.15,1.21895452]
[1746944068814,0.3021924,661.83,661.16,1.21895452]
[1746944069216,0.3021924,661.83,661.17,1.21895452]
[1746944069618,0.3021924,661.83,661.18,1.21895452]
[1746944070314,0.3021924,661.83,661.19,1.21895452]
[1746944070819,0.3021924,661.83,661.2,1.21895452]
[1746944071317,0.3021924,661.83,661.21,1.21995177]
[1746944071922,0.3021924,661.83,661.22,1.21995177]
[1746944072122,0.3021924,661.83,661.11,0.26299183]
[1746944072421,0.3021924,661.83,661.12,1.22022888]
[1746944072722,0.3021924,661.83,661.13,0.413]
[1746944073022,0.3021924,661.83,661.14,1.22022888]
[1746944073321,0.3021924,661.83,661.15,1.22022888]
[1746944073623,0.3021924,661.83,661.16,1.22022888]
[1746944074121,0.3021924,661.83,661.17,1.22022888]
[1746944074624,0.3021924,661.83,661.18,1.22022888]
[1746944074923,0.3021924,661.83,661.19,1.22022888]
[1746944075223,0.3021924,661.83,661.14,1.22022888]
[1746944075725,0.3021924,661.83,661.15,1.22022888]
[1746944076026,0.3021924,661.83,661.16,1.22022888]
[1746944076928,0.3021924,661.83,661.17,1.22022888]
[1746944077227,0.3021924,661.83,661.18,1.22022888]
[1746944077627,0.3021924,661.83,661.14,1.22022888]
[1746944078225,0.3021924,661.83,661.15,1.22022888]
[1746944078631,0.3021924,661.83,661.16,1.22022888]
[1746944079227,0.3021924,661.83,661.17,1.22022888]
[1746944079630,0.3021924,661.83,661.13,0.413]
[1746944079631,0.3021924,661.83,661.14,1.48322866]
[1746944080531,0.3021924,661.83,661.15,1.22022888]
[1746944082736,0.3021924,661.83,661.16,1.22022888]
[1746944083338,0.3021924,661.83,661.17,1.22022888]
[1746944083732,0.3021924,661.83,661.18,1.22022888]
[1746944084438,0.3021924,661.83,661.19,1.22022888]
[1746944085133,0.3021924,661.83,661.2,1.22022888]
[1746944085742,0.3021924,661.83,661.21,1.22022888]
[1746944086034,0.3021924,661.83,661.22,1.22022888]
[1746944086338,0.3021924,661.83,661.23,1.22022888]
[1746944087032,0.3021924,661.83,661.14,0.2629968]
[1746944087634,0.3021924,661.83,661.15,1.22745527]
[1746944088040,0.3021924,661.83,661.16,1.22745527]
[1746944088542,0.3021924,661.83,661.17,1.22745527]
[1746944088941,0.3021924,661.83,661.18,1.22745527]
[1746944089638,0.3021924,661.83,661.19,1.22745527]
[1746944090335,0.3021924,661.83,661.2,1.22745527]
[1746944090542,0.3021924,661.83,661.21,1.22745527]
[1746944091043,0.3021924,661.83,661.22,1.22745527]
[1746944091437,0.3021924,661.83,661.23,1.22745527]
[1746944091944,0.3021924,661.83,661.24,1.22745527]
[1746944092445,0.3021924,661.83,661.25,1.22745527]
[1746944092840,0.3021924,661.83,661.26,1.22745527]
[1746944093145,0.3021924,661.83,661.17,0.26298687]
[1746944093541,0.3021924,661.83,661.18,0.403]
[1746944094145,0.3021924,661.83,661.19,1.22770058]
[1746944094546,0.3021924,661.83,661.2,1.22770058]
[1746944095046,0.3021924,661.83,661.21,1.22770058]
[1746944095347,0.3021924,661.83,661.22,1.22770058]
[1746944095847,0.3021924,661.83,661.23,1.22770058]
[1746944096247,0.3021924,661.83,661.24,1.22770058]
[1746944096848,0.3021924,661.83,661.25,1.22770058]
[1746944097348,0.3021924,661.83,661.26,1.22770058]
[1746944097747,0.3021924,661.83,661.27,1.22770058]
[1746944098147,0.3021924,661.83,661.19,0.26298587]
[1746944098442,0.3021924,661.83,661.2,1.22877474]
[1746944099150,0.3021924,661.83,661.21,1.22877474]
[1746944099750,0.3021924,661.83,661.18,0.403]
[1746944100249,0.3021924,661.83,661.19,1.229145]
[1746944100951,0.3021924,661.83,661.2,1.229145]
[1746944101151,0.3021924,661.83,661.21,1.229145]
[1746944101754,0.3021924,661.83,661.22,1.229145]
[1746944102156,0.3021924,661.83,661.23,1.229145]
[1746944102755,0.3021924,661.83,661.24,1.229145]
[1746944103350,0.3021924,661.83,661.25,1.229145]
[1746944103551,0.3021924,661.83,661.18,0.403]
[1746944104254,0.3021924,661.83,661.19,1.22998714]
[1746944104659,0.3021924,661.83,661.2,1.22998714]
[1746944105153,0.3021924,661.83,661.21,1.22998714]
[1746944105658,0.3021924,661.83,661.22,1.22998714]
[1746944105859,0.3021924,661.83,661.23,1.22998714]
[1746944106257,0.3021924,661.83,661.24,1.22998714]
[1746944107062,0.3021924,661.83,661.25,1.22998714]
[1746944107662,0.3021924,661.83,661.18,0.403]
[1746944108362,0.3021924,661.83,661.19,1.23095755]
[1746944108762,0.3021924,661.83,661.2,1.23095755]
[1746944109363,0.3021924,661.83,661.21,1.23095755]
[1746944109663,0.3021924,661.83,661.22,1.23095755]
[1746944110361,0.3021924,661.83,661.23,1.23095755]
[1746944110665,0.3021924,661.83,661.24,1.23095755]
[1746944111363,0.3021924,661.83,661.25,1.23095755]
[1746944111769,0.3021924,661.83,661.26,1.23095755]
[1746944112171,0.3021924,661.83,661.27,1.23095755]
[1746944112769,0.3021924,661.83,661.28,1.23095755]
[1746944113370,0.3021924,661.83,661.29,1.23095755]
[1746944113769,0.3021924,661.83,661.3,1.23095755]
[1746944114366,0.3021924,661.83,661.31,1.23095755]
[1746944115067,0.3021924,661.83,661.32,1.23095755]
[1746944115570,0.3021924,661.83,661.33,1.23095755]
[1746944115974,0.3021924,661.83,661.34,1.23095755]
[1746944120272,0.3021924,661.83,661.35,1.23095755]
[1746944120678,0.3021924,661.83,661.36,1.23095755]
[1746944121379,0.3021924,661.83,661.37,1.23095755]
[1746944122377,0.3021924,661.83,661.38,1.23095755]
[1746944123179,0.3021924,661.83,661.39,1.23095755]
[1746944124076,0.3021924,661.83,661.4,1.23095755]
[1746944124578,0.3021924,661.83,661.41,1.23095755]
[1746944124977,0.3021924,661.83,661.42,1.23095755]
[1746944125480,0.3021924,661.83,661.43,1.23095755]
[1746944125682,0.3021924,661.83,661.44,1.23095755]
[1746944126482,0.3021924,661.83,661.45,1.23095755]
[1746944126783,0.3021924,661.83,661.46,1.23095755]
[1746944127282,0.3021924,661.83,661.47,1.23095755]
[1746944127877,0.3021924,661.83,661.48,1.23095755]
[1746944128377,0.3021924,661.83,661.49,1.23095755]
[1746944129182,0.3021924,661.83,661.5,1.23095755]
[1746944129584,0.3021924,661.83,661.51,1.23095755]
[1746944129905,0.3021924,661.83,661.52,1.23095755]
[1746944130185,0.3021924,661.83,661.53,1.23095755]
[1746944130681,0.3021924,661.83,661.54,1.23095755]
[1746944131083,0.3021924,661.83,661.55,1.23095755]
[1746944131885,0.3021924,661.83,661.56,1.23095755]
[1746944132187,0.3021924,661.83,661.57,1.23095755]
[1746944132683,0.3021924,661.83,661.58,1.23095755]
[1746944133084,0.3021924,661.83,661.59,1.23095755]
[1746944133790,0.3021924,661.83,661.6,1.23095755]
[1746944134191,0.3021924,661.83,661.61,1.23095755]
[1746944134793,0.3021924,661.83,661.62,1.23095755]
[1746944135094,0.3021924,661.83,661.63,1.23095755]
[1746944135793,0.3021924,661.83,661.64,1.23095755]
[1746944136794,0.3021924,661.83,661.65,1.23095755]
[1746944137094,0.3021924,661.83,661.66,1.23095755]
[1746944137693,0.3021924,661.83,661.67,1.23095755]
[1746944138092,0.3021924,661.83,661.68,1.23095755]
[1746944138594,0.3021924,661.83,661.69,1.23095755]
[1746944139093,0.3021924,661.83,661.7,1.23095755]
[1746944139497,0.3021924,661.83,661.53,0.26284881]
[1746944140096,0.3021924,661.83,661.54,1.22147866]
[1746944140696,0.3021924,661.83,661.55,1.22147866]
[1746944141198,0.3021924,661.83,661.56,1.22147866]
[1746944141698,0.3021924,661.83,661.57,1.22147866]
[1746944142400,0.3021924,661.83,661.58,1.22147866]
[1746944142999,0.3021924,661.83,661.59,1.22147866]
[1746944143194,0.3021924,661.83,661.6,1.22147866]
[1746944144099,0.3021924,661.83,661.61,1.22147866]
[1746944144502,0.3021924,661.83,661.62,1.22147866]
[1746944144900,0.3021924,661.83,661.63,1.22147866]
[1746944145301,0.3021924,661.83,661.64,1.22147866]
[1746944145901,0.3021924,661.83,661.65,1.22147866]
[1746944146302,0.3021924,661.83,661.66,1.22147866]
[1746944146702,0.3021924,661.83,661.67,1.22147866]
[1746944147405,0.3021924,661.83,661.68,1.22147866]
[1746944147800,0.3021924,661.83,661.69,1.22147866]
[1746944148204,0.3021924,661.83,661.7,1.22147866]
[1746944148898,0.3021924,661.83,661.71,1.22147866]
[1746944149304,0.3021924,661.83,661.72,1.22147866]
[1746944149804,0.3021924,661.83,661.73,1.22147866]
[1746944150405,0.3021924,661.83,661.74,1.22147866]
[1746944150804,0.3021924,661.83,661.75,1.22147866]
[1746944151104,0.3021924,661.83,661.76,1.22147866]
[1746944151702,0.3021924,661.83,661.77,1.22147866]
[1746944152105,0.3021924,661.83,661.78,1.22147866]
[1746944152606,0.3021924,661.83,661.79,1.22147866]
[1746944153207,0.3021924,661.83,661.8,1.22147866]
[1746944153604,0.3021924,661.83,661.81,1.22147866]
[1746944153805,0.3021924,661.83,661.68,0.26282102]
[1746944153806,0.3021924,661.83,661.82,1.22147866]
[1746944172022,0.3021924,661.83,661.67,0.26283889]
[1746944172421,0.3021924,661.83,661.33,0.464]
[1746944172618,0.3021924,661.83,661.63,0.26289548]
[1746944172823,0.3021924,661.83,661.33,0.464]
[1746944173020,0.3021924,661.83,661.64,1.22115051]
[1746944173421,0.3021924,661.83,661.65,1.22115051]
[1746944173920,0.3021924,661.83,661.34,1.22115051]
[1746944174121,0.3021924,661.83,661.63,0.2628637]
[1746944174321,0.3021924,661.83,661.64,1.22115051]
[1746944174821,0.3021924,661.83,661.65,1.22115051]
[1746944175222,0.3021924,661.83,661.64,1.22115051]
[1746944175826,0.3021924,661.83,661.63,0.2628647]
[1746944176325,0.3021924,661.83,661.64,1.22115051]
[1746944176726,0.3021924,661.83,661.65,1.22115051]
[1746944177426,0.3021924,661.83,661.66,1.22115051]
[1746944177732,0.3021924,661.83,661.67,1.22115051]
[1746944178334,0.3021924,661.83,661.33,0.464]
[1746944179025,0.3021924,661.83,661.34,1.22399829]
[1746944179823,0.3021924,661.83,661.35,1.22399829]
[1746944180728,0.3021924,661.83,661.36,1.22399829]
[1746944181328,0.3021924,661.83,661.37,1.22399829]
[1746944181627,0.3021924,661.83,661.38,1.22399829]
[1746944182329,0.3021924,661.83,661.39,1.22399829]
[1746944183029,0.3021924,661.83,661.4,1.22399829]
[1746944183428,0.3021924,661.83,661.41,0.26288058]
[1746944183629,0.3021924,661.83,661.41,1.48687887]
[1746944184129,0.3021924,661.83,661.42,1.22399829]
[1746944184930,0.3021924,661.83,661.43,1.22399829]
[1746944185326,0.3021924,661.83,661.44,1.22399829]
[1746944185826,0.3021924,661.83,661.45,1.22399829]
[1746944186527,0.3021924,661.83,661.46,1.22399829]
[1746944187533,0.3021924,661.83,661.47,1.22399829]
[1746944188333,0.3021924,661.83,661.48,1.22399829]
[1746944188733,0.3021924,661.83,661.49,1.22399829]
[1746944189129,0.3021924,661.83,661.5,1.22399829]
[1746944189635,0.3021924,661.83,661.51,1.22399829]
[1746944190034,0.3021924,661.83,661.52,1.22399829]
[1746944190934,0.3021924,661.83,661.53,1.22399829]
[1746944191435,0.3021924,661.83,661.54,1.22399829]
[1746944191935,0.3021924,661.83,661.55,1.22399829]
[1746944192437,0.3021924,661.83,661.56,1.22399829]
[1746944192938,0.3021924,661.83,661.57,1.22399829]
[1746944193436,0.3021924,661.83,661.58,1.22399829]
[1746944194134,0.3021924,661.83,661.59,1.22399829]
[1746944194635,0.3021924,661.83,661.6,1.22399829]
[1746944195136,0.3021924,661.83,661.61,1.22399829]
[1746944195739,0.3021924,661.83,661.62,1.22399829]
[1746944196238,0.3021924,661.83,661.63,1.22399829]
[1746944196835,0.3021924,661.83,661.64,1.22399829]
[1746944197237,0.3021924,661.83,661.65,1.22399829]
[1746944197740,0.3021924,661.83,661.66,1.22399829]
[1746944198542,0.3021924,661.83,661.67,1.22399829]
[1746944199141,0.3021924,661.83,661.68,1.22399829]
[1746944199842,0.3021924,661.83,661.69,1.22399829]
[1746944200144,0.3021924,661.83,661.7,1.22399829]
[1746944200741,0.3021924,661.83,661.71,1.22399829]
[1746944201143,0.3021924,661.83,661.72,1.22399829]
[1746944201336,0.3021924,661.83,661.73,1.22399829]
[1746944201942,0.3021924,661.83,661.74,1.22399829]
[1746944202342,0.3021924,661.83,661.75,1.22399829]
[1746944203243,0.3021924,661.83,661.76,1.22399829]
[1746944203744,0.3021924,661.83,661.77,1.22399829]
[1746944204043,0.3021787,661.86,661.77,1.22399829]
[1746944204344,0.3021787,661.86,661.78,1.22399829]
[1746944204744,0.3021787,661.86,661.79,1.22399829]
[1746944205245,0.3021787,661.86,661.8,1.22399829]
[1746944205640,0.3021787,661.86,661.81,1.22399829]
[1746944206346,0.3021787,661.86,661.82,1.22399829]
[1746944206646,0.3021787,661.86,661.83,1.22399829]
[1746944207146,0.3021787,661.86,661.84,1.22399829]
[1746944207443,0.3021787,661.86,661.85,1.22399829]
[1746944257790,0.30216501,661.89,661.85,1.22399829]
[1746944258288,0.30216501,661.89,661.86,1.22399829]
[1746944258490,0.30216501,661.89,661.87,1.22399829]
[1746944259092,0.30216501,661.89,661.88,1.22399829]
[1746944273104,0.30215131,661.92,661.88,1.22399829]
[1746944273600,0.30215131,661.92,661.89,1.22399829]
[1746944274104,0.30215131,661.92,661.9,1.22399829]
[1746944274703,0.30215131,661.92,661.91,1.22399829]
[1746944281508,0.30200531,662.24,661.91,1.22399829]
[1746944282208,0.30200531,662.24,661.92,1.22399829]
[1746944282909,0.30200531,662.24,661.93,1.22399829]
[1746944283703,0.30200531,662.24,661.94,1.22399829]
[1746944288615,0.15151771,662.01,661.94,1.22399829]
[1746944289114,0.15151771,662.01,661.95,1.22399829]
[1746944289815,0.15151771,662.01,661.96,1.22399829]
[1746944290108,0.15151771,662.01,661.97,1.22399829]
[1746944290514,0.15151771,662.01,661.98,1.22399829]
[1746944290813,0.15151771,662.01,661.99,1.22399829]
[1746944291215,0.15151771,662.01,662.0,1.22399829]
[1746944291915,0.30200531,662.24,662.0,1.22399829]
[1746944292309,0.30200531,662.24,662.01,1.22399829]
[1746944292915,0.30200531,662.24,662.02,1.22399829]
[1746944293617,0.30200531,662.24,662.03,1.22399829]
[1746944313131,0.30200531,662.24,662.03,1.19857432]
[1746944317731,0.30200531,662.24,662.03,1.19841413]
[1746944326435,0.30200531,662.24,662.04,1.19841413]
[1746944326736,0.30200531,662.24,662.05,1.19841413]
[1746944327535,0.30200531,662.24,662.06,1.19841413]
[1746944328139,0.30200531,662.24,662.01,0.26268215]
[1746944328339,0.30200531,662.24,662.06,1.19854524]
[1746944329335,0.30200531,662.24,662.07,1.19854524]
[1746944330038,0.30200531,662.24,662.08,1.19854524]
[1746944330342,0.30200531,662.24,662.09,1.19854524]
[1746944349347,0.30200531,662.24,662.1,1.19854524]
[1746944349753,0.30200531,662.24,662.11,1.19854524]
[1746944357060,0.30200531,662.24,662.12,1.19854524]
[1746944357457,0.30200531,662.24,662.13,1.19854524]
[1746944357861,0.30200531,662.24,662.14,1.19854524]
[1746944358157,0.30200531,662.24,662.15,1.19854524]
[1746944403281,0.30200531,662.24,662.16,1.19854524]
[1746944403883,0.30200531,662.24,662.17,1.19854524]
[1746944417900,0.15138058,662.22,662.17,1.50058248]
[1746944418201,0.15138058,662.22,662.18,0.30203267]
[1746944418699,0.15138058,662.22,662.19,1.19854524]
[1746944418902,0.15138058,662.22,662.2,0.30202355]
[1746944419295,0.15138058,662.22,662.21,1.19854524]
[1746944419701,0.15138058,662.22,662.21,1.50056423]
[1746944420903,0.15138058,662.22,662.21,1.4778809]
[1746944433510,0.30200531,662.24,662.21,1.4778809]
[1746944433815,0.30200531,662.24,662.22,0.30201443]
[1746944434017,0.30200531,662.24,662.23,1.17586191]
[1746944435015,0.30200531,662.24,662.23,1.47787178]
[1746944460332,1.92318063,663.86,662.23,1.47787178]
[1746944460633,0.26259395,663.67,662.24,0.30200531]
[1746944461330,0.26259395,663.67,662.25,1.17586191]
[1746944461834,0.26259395,663.67,662.26,1.17586191]
[1746944462334,0.26259395,663.67,662.27,1.17586191]
[1746944462733,0.26259395,663.67,662.28,0.30198707]
[1746944462929,0.26259395,663.67,662.29,1.17586191]
[1746944463129,0.26259395,663.67,662.3,0.30197795]
[1746944463435,0.26259395,663.67,662.31,1.17586191]
[1746944463637,0.26259395,663.67,662.32,0.30196883]
[1746944463933,0.26259395,663.67,662.33,1.17586191]
[1746944464538,0.26259395,663.67,662.33,1.47782618]
[1746944466640,1.92318063,663.81,662.33,1.47782618]
[1746944466940,1.92318063,663.7,662.33,1.47782618]
[1746944468041,0.26244146,663.67,662.33,1.47782618]
[1746944469644,1.92318063,663.7,662.33,1.47782618]
[1746944469943,1.92318063,663.71,662.33,1.47782618]
[1746944470141,0.26244146,663.67,662.33,1.47782618]
[1746944471538,1.92318063,663.63,662.33,1.47782618]
[1746944473643,0.26244839,663.67,662.33,1.47782618]
[1746944475647,1.92318063,663.8,662.33,1.47782618]
[1746944476942,0.26243156,663.67,662.33,1.47782618]
[1746944478649,1.92318063,663.81,662.33,1.47782618]
[1746944479142,0.26243057,663.67,662.33,1.47782618]
[1746944481658,1.92318063,664.19,662.33,1.47782618]
[1746944481847,0.26244443,663.67,662.33,1.47782618]
[1746944484655,1.92318063,664.19,662.33,1.47782618]
[1746944485955,1.92318063,664.17,662.33,1.47782618]
[1746944486156,0.26239298,663.67,662.33,1.47782618]
[1746944487652,1.92318063,664.22,662.33,1.47782618]
[1746944489051,0.26239001,663.67,662.33,1.47782618]
[1746944490660,1.92318063,663.96,662.33,1.47782618]
[1746944491360,1.92318063,664.09,662.33,1.47782618]
[1746944492259,0.26240188,663.68,662.33,1.47782618]
[1746944493558,1.92318063,664.09,662.33,1.47782618]
[1746944493762,1.92318063,664.37,662.33,1.47782618]
[1746944493958,0.26243354,663.72,662.33,1.47782618]
[1746944496662,1.92318063,664.36,662.33,1.47782618]
[1746944497363,1.92318063,664.44,662.33,1.47782618]
[1746944498862,1.92318063,664.45,662.33,1.47782618]
[1746944499063,0.26236627,663.68,662.33,1.47782618]
[1746944499763,1.92318063,664.45,662.33,1.47782618]
[1746944501267,1.92318063,664.46,662.33,1.47782618]
[1746944502067,0.26235638,663.72,662.33,1.47782618]
[1746944502667,1.92318063,664.46,662.33,1.47782618]
[1746944503673,1.92318063,664.22,662.33,1.47782618]
[1746944504069,0.26235638,663.72,662.33,1.47782618]
[1746944505571,1.92318063,664.22,662.33,1.47782618]
[1746944506472,1.92318063,665.77,662.33,1.47782618]
[1746944506473,1.92318063,663.77,662.33,1.47782618]
[1746944507172,0.26242464,663.72,662.33,1.47782618]
[1746944508674,1.92318063,663.78,662.34,1.17586191]
[1746944508876,1.92318063,663.78,662.35,0.30195515]
[1746944509073,0.24223584,663.77,662.35,0.30195515]
[1746944509274,0.24223584,663.77,662.36,1.17586191]
[1746944509472,0.24223584,663.77,662.37,1.47780795]
[1746944509676,0.24223584,663.77,662.38,0.30194148]
[1746944509877,0.26241375,663.76,662.38,0.30194148]
[1746944510074,0.26241375,663.76,662.39,1.17586191]
[1746944510277,0.26241375,663.76,662.4,0.30193236]
[1746944510578,0.24223584,663.75,662.41,1.17586191]
[1746944510878,0.24223584,663.75,662.42,0.30192325]
[1746944511073,0.24223584,663.75,662.43,1.17586191]
[1746944511278,0.24223584,663.75,662.44,0.30191413]
[1746944511480,0.24223584,663.75,662.45,1.17586191]
[1746944511680,0.24223584,663.75,662.46,0.30190502]
[1746944511880,0.24223584,663.75,662.47,1.17586191]
[1746944512076,0.24223584,663.75,662.48,0.3018959]
[1746944512277,0.24223584,663.88,662.48,0.3018959]
[1746944512475,0.3012638,663.87,662.49,1.17586191]
[1746944512777,0.3012638,663.87,662.5,1.17586191]
[1746944512978,0.50466597,663.86,662.5,1.17586191]
[1746944513181,0.30127287,663.85,662.51,1.17586191]
[1746944513382,0.54354784,663.85,662.52,1.17586191]
[1746944513581,0.24227497,663.84,662.52,1.17586191]
[1746944514082,0.24227497,663.84,662.53,1.17586191]
[1746944514286,0.30128195,663.83,662.53,1.17586191]
[1746944514586,0.24227497,663.82,662.54,1.17586191]
[1746944514882,0.50466696,663.82,662.55,1.17586191]
[1746944515284,0.50466696,663.82,662.56,1.17586191]
[1746944515484,0.24227497,663.81,662.56,1.17586191]
[1746944515684,0.24227497,663.81,662.57,1.17586191]
[1746944516189,0.24227497,663.81,662.58,1.17586191]
[1746944516693,0.24227497,663.81,662.59,1.17586191]
[1746944517190,0.24227497,663.81,662.6,1.17586191]
[1746944517790,0.24227497,663.81,662.61,1.17586191]
[1746944517987,0.50465311,663.8,662.62,1.17586191]
[1746944518290,0.50465311,663.8,662.63,1.17586191]
[1746944518492,0.24227497,663.79,662.63,1.17586191]
[1746944518792,0.24227497,663.79,662.64,1.17586191]
[1746944519293,0.24227497,663.79,662.65,1.17586191]
[1746944519693,0.24227497,663.79,662.66,1.17586191]
[1746944520288,0.24227497,663.79,662.5,0.26237814]
[1746944520289,0.24227497,663.79,662.67,1.17586191]
[1746944520493,0.24227497,663.78,662.67,1.17586191]
[1746944520689,0.24227497,663.79,662.67,1.17586191]
[1746944520889,0.24227497,663.79,662.68,1.17586191]
[1746944521094,0.26237814,663.8,662.68,1.17586191]
[1746944521295,0.24224066,663.79,662.69,1.17586191]
[1746944521595,0.24224066,663.79,662.5,0.26237814]
[1746944521596,1.92318063,663.75,662.7,1.17586191]
[1746944522095,0.24224066,663.74,662.7,1.17586191]
[1746944522395,0.24224066,663.74,662.5,0.26237814]
[1746944522597,0.24224066,663.74,662.51,0.30188223]
[1746944522894,0.24224066,663.74,662.52,1.16901329]
[1746944523096,0.24224066,663.74,662.52,2.01689096]
[1746944523595,0.24224066,663.74,662.53,1.16901329]
[1746944523790,0.24224066,663.74,662.54,1.16901329]
[1746944524501,0.24224066,663.78,662.55,1.16901329]
[1746944524899,0.24224066,663.78,662.56,1.16901329]
[1746944525594,0.24224066,663.78,662.57,1.16901329]
[1746944526298,0.24224066,663.78,662.58,1.16901329]
[1746944526601,0.24224066,663.78,662.59,1.16901329]
[1746944526899,0.26239199,663.77,662.6,1.16901329]
[1746944527199,0.24224066,663.76,662.6,1.16901329]
[1746944527396,0.24224066,663.76,662.61,1.16901329]
[1746944527899,0.30131826,663.75,662.61,1.16901329]
[1746944528097,0.30131826,663.75,662.52,0.84787767]
[1746944528297,0.24224066,663.74,662.52,0.84787767]
[1746944528494,0.30132734,663.73,662.52,0.84787767]
[1746944528697,0.30132734,663.73,662.53,1.16916775]
[1746944528894,0.24224066,663.72,662.53,1.16916775]
[1746944529098,0.24224066,663.72,662.54,1.16916775]
[1746944529099,0.30133642,663.71,662.54,1.16916775]
[1746944529295,0.30133642,663.71,662.55,1.16916775]
[1746944529798,0.24247453,663.7,662.55,1.16916775]
[1746944529999,0.3013455,663.69,662.56,1.16916775]
[1746944530199,0.3013455,663.69,662.57,1.16916775]
[1746944530501,0.24247453,663.68,662.58,1.16916775]
[1746944530901,0.24247453,663.68,662.52,0.84787767]
[1746944531400,0.24247453,663.68,662.53,1.16908746]
[1746944532102,0.24247453,663.68,662.54,1.16908746]
[1746944532303,0.3013455,663.69,662.55,1.16908746]
[1746944532598,0.24247042,663.68,662.56,1.16908746]
[1746944533005,0.24247042,663.68,662.57,1.16908746]
[1746944533503,0.24247042,663.68,662.58,1.16908746]
[1746944534102,0.2624098,663.67,662.59,1.16908746]
[1746944534407,0.24247042,663.66,662.59,1.16908746]
[1746944534706,0.24247042,663.66,662.6,1.16908746]
[1746944535508,0.2624098,663.67,662.52,0.84787767]
[1746944535705,0.2624098,663.67,662.53,1.16918101]
[1746944535906,0.2424698,663.66,662.53,1.16918101]
[1746944536099,0.2424698,663.66,662.54,1.16918101]
[1746944536605,0.2424698,663.66,662.55,1.16918101]
[1746944537208,0.2424698,663.66,662.56,1.16918101]
[1746944537907,0.2424698,663.66,662.57,1.16918101]
[1746944538408,0.2424698,663.66,662.58,1.16918101]
[1746944538809,0.2424698,663.66,662.59,1.16918101]
[1746944539004,0.2424698,663.66,662.6,1.16918101]
[1746944539206,0.2624098,663.67,662.6,1.16918101]
[1746944539610,0.2624098,663.67,662.61,1.16918101]
[1746944539809,0.24238525,663.66,662.62,1.16918101]
[1746944540410,0.24238525,663.66,662.52,0.84787767]
[1746944540709,0.24238525,663.66,662.53,1.16938879]
[1746944541109,0.24238525,663.66,662.54,1.16938879]
[1746944541611,0.24238525,663.66,662.55,1.16938879]
[1746944542407,0.24238525,663.66,662.56,1.16938879]
[1746944542709,0.24238525,663.68,662.56,1.16938879]
[1746944542909,0.5048089,663.65,662.57,1.16938879]
[1746944543111,0.5048089,663.65,662.58,1.16938879]
[1746944543311,0.24238525,663.64,662.58,1.16938879]
[1746944543514,0.24238525,663.64,662.59,1.16938879]
[1746944544313,0.24238525,663.64,662.6,1.16938879]
[1746944545112,0.24238525,663.64,662.61,1.16938879]
[1746944545411,0.24238525,663.64,662.62,1.16938879]
[1746944545713,0.24238525,663.68,662.62,1.16938879]
[1746944545913,0.24238525,663.68,662.52,0.84787767]
[1746944546207,0.26241771,663.63,662.53,1.16956362]
[1746944546410,0.26241771,663.63,662.54,1.16956362]
[1746944546810,0.24238525,663.62,662.55,1.16956362]
[1746944547611,0.3013455,663.69,662.55,1.16956362]
[1746944547816,0.3013455,663.69,662.56,1.16956362]
[1746944548018,0.26242464,663.61,662.56,1.16956362]
[1746944548219,0.24237103,663.68,662.56,1.16956362]
[1746944548414,0.24237103,663.6,662.57,1.16956362]
[1746944548718,0.24237103,663.68,662.58,1.16956362]
[1746944549118,0.26242266,663.61,662.58,1.16956362]
[1746944549320,0.26242266,663.61,662.59,1.16956362]
[1746944549516,0.24237103,663.6,662.59,1.16956362]
[1746944549721,0.24237103,663.6,662.6,1.16956362]
[1746944550423,0.24237103,663.6,662.61,1.16956362]
[1746944550620,0.24237103,663.6,662.62,1.16956362]
[1746944550821,0.24237103,663.68,662.62,1.16956362]
[1746944551017,0.26241771,663.61,662.62,1.16956362]
[1746944551322,0.26241771,663.61,662.52,0.30187767]
[1746944551724,0.24237103,663.6,662.53,1.16974687]
[1746944552020,0.24237103,663.6,662.54,1.16974687]
[1746944552626,0.24237103,663.6,662.55,1.16974687]
[1746944553024,0.24237103,663.6,662.56,1.16974687]
[1746944553325,0.24237103,663.6,662.56,1.57574687]
[1746944553625,0.24237103,663.6,662.57,1.16974687]
[1746944553924,0.24237103,663.6,662.58,1.16974687]
[1746944554325,0.24237103,663.6,662.59,1.16974687]
[1746944554725,0.24237103,663.6,662.6,1.16974687]
[1746944555320,0.24237103,663.6,662.61,1.16974687]
[1746944555621,0.24237103,663.6,662.62,1.16974687]
[1746944555924,0.24237103,663.6,662.63,1.16974687]
[1746944556427,0.24237103,663.6,662.56,0.406]